Cogmind - Beta 15 @@@ ROGUE MODE // 2025.07.14 @ 13:04:00 Player: Zerindel Result: Destroyed by B-75 Beast with Magnetic Acceleration Cannon Performance ------------- Evolutions (4) 2000 Regions Visited (10) 2000 Robots Destroyed (6) 30 Value Destroyed (111) 111 Prototype IDs (10) 200 Alien Tech Used (0) 0 Bonus (429) 429 TOTAL SCORE: 4770 Bonus ------- Follower Combat Kills 129 Met Data Miner 300 Cogmind --------- Core Integrity 0/850 Matter 224/300 Energy 30/100 System Corruption 0% Temperature Cool (4) Movement Flying (32) Location -5/Proximity Caves Parts ------- > --- POWER (3) -------- (None) > --- PROPULSION (6) --- VTOL Module VTOL Module > --- UTILITY (4) ------ Advanced Terrain Scanner Advanced ECM Suite > --- WEAPON (2) ------- (None) > --- INVENTORY (5) ---- Angular Momentum Engine Transmission Jammer Hacking Drone Bay Peak State ------------ > --- POWER ------------ Angular Momentum Engine > --- PROPULSION ------- (None) > --- UTILITY ---------- Power Amplifier Triangulator > --- WEAPON ----------- (None) > --- INVENTORY -------- Improved Carbon-fiber Leg Small Storage Unit Transmission Jammer Force Field Hacking Drone Bay [Rating: 17] Favorites ----------- Power Ion Engine Engine Ion Engine Propulsion Flight Unit Treads Medium Treads Leg Flexi-carbon Leg Wheel Compact Wheel Hover Unit Gravmag System Flight Unit Flight Unit Utility Small Battery Device ECM Suite Storage Small Battery Weapon Medium Laser Energy Gun Medium Laser Ballistic Gun Autogun Build | -11 -10 -9 -9 -7 -6 -6 -6 -6 -6 -5 ------- Run | Yrd Mat Mat Min Zio Pro Fac Low Low Dat Pro Slots Evolved 8 | . . 2 . . . 6 . . . . Power 2 | . . . . . . 2 . . . . Propulsion 4 | . . 2 . . . 2 . . . . Utility 2 | . . . . . . 2 . . . . Weapon . | . . . . . . . . . . . Parts Attached 28 | 6 3 2 . 1 3 10 1 . . 2 Power 2 | 1 . . . . . 1 . . . . Engine 2 | 1 . . . . . 1 . . . . Core . | . . . . . . . . . . . Reactor . | . . . . . . . . . . . Propulsion 14 | 2 3 . . . 2 5 . . . 2 Treads 1 | . . . . . . 1 . . . . Leg 2 | . . . . . 2 . . . . . Wheel 5 | 2 . . . . . 3 . . . . Hover 1 | . . . . . . 1 . . . . Flight 5 | . 3 . . . . . . . . 2 Utility 8 | 1 . 2 . . . 4 1 . . . Device 6 | . . 1 . . . 4 1 . . . Storage 2 | 1 . 1 . . . . . . . . Processor . | . . . . . . . . . . . Hackware . | . . . . . . . . . . . Protection . | . . . . . . . . . . . Artifact . | . . . . . . . . . . . Weapon 4 | 2 . . . 1 1 . . . . . Energy Gun 3 | 2 . . . 1 . . . . . . Energy Cannon . | . . . . . . . . . . . Ballistic Gun 1 | . . . . . 1 . . . . . Ballistic Cannon . | . . . . . . . . . . . Launcher . | . . . . . . . . . . . Special Weapon . | . . . . . . . . . . . Impact Weapon . | . . . . . . . . . . . Slashing Weapon . | . . . . . . . . . . . Piercing Weapon . | . . . . . . . . . . . Special Melee Weapon . | . . . . . . . . . . . Unidentified Prototypes . | . . . . . . . . . . . Parts Lost 13 | . . . . . 8 5 . . . . Power 1 | . . . . . 1 . . . . . Propulsion 8 | . . . . . 5 3 . . . . Utility 3 | . . . . . 1 2 . . . . Weapon 1 | . . . . . 1 . . . . . Highest Loss Streak 4 | . . . . . 4 2 . . . . To Critical Strikes . | . . . . . . . . . . . Average Backups 4 | . 2 4 5 4 4 4 4 4 4 4 Power . | . . . . . . . 1 1 1 1 Propulsion . | . . . . . . . . . . . Utility 3 | . . 3 3 3 3 3 3 3 3 3 Weapon . | . . 1 2 1 1 . . . . . Tool/Special . | . . . . . . . . . . . Unused Backups 11 | . 1 1 1 2 2 2 . . . 2 Power . | . . . . . . . . . . . Propulsion 2 | . 1 . . . . 1 . . . . Utility 6 | . . 1 1 1 1 . . . . 2 Weapon 3 | . . . . 1 1 1 . . . . Tool/Special . | . . . . . . . . . . . Average Slot Usage (%) 45 | . 81 82 88 88 56 14 4 6 6 11 Engine 4 | . 14 11 11 11 1 . . . . . Wheel 2 | . 19 . . . . 4 . . . . Flight 13 | . 9 33 33 33 18 . . . . 3 Device 7 | . . 9 11 11 7 7 4 6 6 7 Storage 6 | . 10 7 11 11 11 1 . . . . Energy Gun 10 | . 28 22 22 22 11 . . . . . Peak Build Rating 17 | 6 6 8 8 9 12 17 7 7 7 14 Average Rating 8 | 4 5 7 8 8 8 9 5 7 7 9 On Entrance 5 | . 6 5 8 8 9 3 2 7 7 7 Naked Turns 65 | . . . . . . 15 50 . . . Heaviest Build 13 | 13 13 11 11 12 12 7 1 1 1 4 Greatest Support 48 | 26 26 12 12 12 40 48 3 3 3 8 Greatest Overweight (x) 3 | 3 3 . . . . 2 . . . . Average Overweight (x) . | . . . . . . . . . . . Largest Inventory Capacity 8 | 8 8 8 5 5 5 5 5 5 5 5 Average Capacity 5 | 7 7 5 5 5 5 5 5 5 5 5 Most Carried 5 | . 5 5 5 5 5 5 5 4 4 4 Average Carried 4 | . 2 4 4 4 4 4 4 4 4 3 Final Capacity 8 | 8 5 5 5 5 5 5 5 5 5 5 Final Carried 5 | . 5 5 5 5 5 5 4 4 4 3 Class Distribution -------------------- 100% | Mutant Dominant Class ---------------- Mutant | -10/Materials Mutant | -9/Materials Mutant | -9/Mines Mutant | -7/Zion Mutant | -6/Proximity Caves Mutant | -6/Factory Mutant | -6/Lower Caves Mutant | -6/Lower Caves Mutant | -6/Data Miner Mutant | -5/Proximity Caves Resources | -11 -10 -9 -9 -7 -6 -6 -6 -6 -6 -5 ----------- Run | Yrd Mat Mat Min Zio Pro Fac Low Low Dat Pro Matter Collected 429 | 253 47 . 34 16 20 . 14 . . 45 Remotely . | . . . . . . . . . . . Salvage Created 116 | . 53 . . . 63 . . . . . Parts 12 | . 8 . . . 4 . . . . . Haulers Intercepted . | . . . . . . . . . . . Recyclers Shooed . | . . . . . . . . . . . Parts Field Recycled . | . . . . . . . . . . . Retrieved Matter . | . . . . . . . . . . . Parts Self-Destructed 14 | . . . . . 5 . . 5 . 4 Prevented 1 | . . . . . . . . 1 . . Kills | -11 -10 -9 -9 -7 -6 -6 -6 -6 -6 -5 ------- Run | Yrd Mat Mat Min Zio Pro Fac Low Low Dat Pro Combat Hostiles Destroyed 6 | . 3 . . . 3 . . . . . Guns 6 | . 3 . . . 3 . . . . . Classes Destroyed 1 | . 1 . . . . . . . . . Swarmer 6 | . 3 . . . 3 . . . . . Best Kill Streak 3 | . 3 . . . 2 . . . . . Combat Bots Only 3 | . 3 . . . 2 . . . . . Max Kills in Single Turn 2 | . 2 . . . 1 . . . . . Gunslinging 1 | . 1 . . . . . . . . . Exploded . | . . . . . . . . . . . Melee . | . . . . . . . . . . . Uniques/NPCs Destroyed . | . . . . . . . . . . . Combat | -11 -10 -9 -9 -7 -6 -6 -6 -6 -6 -5 -------- Run | Yrd Mat Mat Min Zio Pro Fac Low Low Dat Pro Hostile Shots Fired 286 | . 23 4 . . 110 139 . 2 . 8 Missed 122 | . 9 3 . . 41 63 . 1 . 5 Hits 164 | . 14 1 . . 69 76 . 1 . 3 Melee 1 | . . . . . 1 . . . . . Projectile 163 | . 14 1 . . 68 76 . 1 . 3 AOE 1 | . . . . . . 1 . . . . Critical Strikes 3 | . . . . . 2 1 . . . . Damage Taken 1948 | . 118 10 . . 761 972 . 18 . 69 Core 1183 | . 26 10 . . 271 789 . 18 . 69 Absorbed by Shields 37 | . . . . . . 37 . . . . Core Remaining (%) 72 | 100 89 . . . 29 . . . . . Volleys Fired 13 | . 3 . . . 10 . . . . . Largest 2 | . 2 . . . 2 . . . . . Hottest 100 | . 90 . . . 100 . . . . . Shots Fired 26 | . 6 . . . 20 . . . . . Gun 26 | . 6 . . . 20 . . . . . Cannon . | . . . . . . . . . . . Launcher . | . . . . . . . . . . . Special . | . . . . . . . . . . . Kinetic . | . . . . . . . . . . . Thermal 26 | . 6 . . . 20 . . . . . Explosive . | . . . . . . . . . . . Electromagnetic . | . . . . . . . . . . . Robot Hit Streak 6 | . 4 . . . 6 . . . . . Robot Miss Streak 2 | . 1 . . . 2 . . . . . Penetration Max . | . . . . . . . . . . . Secondary Targets 1 | . 1 . . . . . . . . . Max Gunslinging Chain 1 | . 1 . . . . . . . . . Shots Hit Robots 17 | . 5 . . . 12 . . . . . Core Hits 9 | . 3 . . . 6 . . . . . Critical Kills . | . . . . . . . . . . . Critical Parts Destroyed . | . . . . . . . . . . . Critical Strikes 1 | . 1 . . . . . . . . . Burn 1 | . 1 . . . . . . . . . Melee Attacks . | . . . . . . . . . . . Impact . | . . . . . . . . . . . Slashing . | . . . . . . . . . . . Piercing . | . . . . . . . . . . . Sneak Attacks . | . . . . . . . . . . . Combat Hostiles . | . . . . . . . . . . . Follow-up Attacks . | . . . . . . . . . . . Damage Inflicted 210 | . 58 . . . 152 . . . . . Guns 210 | . 58 . . . 152 . . . . . Cannons . | . . . . . . . . . . . Explosions . | . . . . . . . . . . . Melee . | . . . . . . . . . . . Ramming . | . . . . . . . . . . . Kinetic . | . . . . . . . . . . . Thermal 210 | . 58 . . . 152 . . . . . Explosive . | . . . . . . . . . . . Electromagnetic . | . . . . . . . . . . . Impact . | . . . . . . . . . . . Slashing . | . . . . . . . . . . . Piercing . | . . . . . . . . . . . Highest Corruption . | . . . . . . . . . . . Average Corruption . | . . . . . . . . . . . Corruption Purged . | . . . . . . . . . . . Corruption Blocked . | . . . . . . . . . . . Overload Shots . | . . . . . . . . . . . Overflow Damage . | . . . . . . . . . . . Projectiles . | . . . . . . . . . . . Explosions . | . . . . . . . . . . . Melee . | . . . . . . . . . . . Knockbacks . | . . . . . . . . . . . Impact . | . . . . . . . . . . . Kinetic . | . . . . . . . . . . . Secondary . | . . . . . . . . . . . Self-Inflicted Damage . | . . . . . . . . . . . Shots . | . . . . . . . . . . . Rammed . | . . . . . . . . . . . Targets Rammed . | . . . . . . . . . . . Kicked . | . . . . . . . . . . . Crushed . | . . . . . . . . . . . Highest Temperature 91 | . 90 . . . 91 . . . . . Average Temperature 41 | . 47 . . . 40 . . . . . Received Heat Transfer 348 | . . . . . 183 156 . 9 . . Siege Activations . | . . . . . . . . . . . Martial Activations . | . . . . . . . . . . . Shielding Activations . | . . . . . . . . . . . Robots Disrupted . | . . . . . . . . . . . Combat Hostiles . | . . . . . . . . . . . Robots Corrupted . | . . . . . . . . . . . Combat Hostiles . | . . . . . . . . . . . Parts Fried . | . . . . . . . . . . . Impact Corruptions . | . . . . . . . . . . . Robots Melted . | . . . . . . . . . . . Combat Hostiles . | . . . . . . . . . . . Parts Melted . | . . . . . . . . . . . Heat Transferred 667 | . 223 . . . 444 . . . . . Parts Sabotaged . | . . . . . . . . . . . Parts Stolen . | . . . . . . . . . . . Parts Stripped . | . . . . . . . . . . . Power Chain Reactions . | . . . . . . . . . . . Alert | -11 -10 -9 -9 -7 -6 -6 -6 -6 -6 -5 ------- Run | Yrd Mat Mat Min Zio Pro Fac Low Low Dat Pro Maximum Alert Level . | . . . . . . . . . . . Low Security (%) 100 | 100 100 100 100 . . 100 . . . . Level 1 . | . . . . . . . . . . . Level 2 . | . . . . . . . . . . . Level 3 . | . . . . . . . . . . . Level 4 . | . . . . . . . . . . . Level 5 . | . . . . . . . . . . . High Security . | . . . . . . . . . . . Max Security . | . . . . . . . . . . . Peak Influence 180 | . 95 35 1 . . 180 . . . . Initial 35 | . . 35 1 . . . . . . . Average 33 | . 30 22 . . . 41 . . . . Influence Increases 885 | . 119 15 . . 220 304 . 90 . 137 Destroy 0b10 Robot/C 300 | . 60 . . . 60 . . 80 . 100 Destroy 0b10 Robot/NC 5 | . . . . . . 5 . . . . Destroy Leader 40 | . 10 . . . 10 . . 10 . 10 Allied During Kill 27 | . . . . . . . . . . 27 Successful Hack 18 | . 4 . . . . 14 . . . . Partial Spotted 30 | . . 15 . . . 15 . . . . Lose Combat Pursuer 465 | . 45 . . . 150 270 . . . . Influence Decreases 758 | . 34 95 5 . 220 162 142 70 20 10 Entered New Map 127 | . . 50 4 . . . 53 . 20 . Time Decay 484 | . 34 20 1 . 162 98 89 70 . 10 Lost Part 82 | . . . . . 58 24 . . . . Lost Ally 40 | . . . . . . 40 . . . . Purge Threat 25 | . . 25 . . . . . . . . Squads Dispatched 6 | . 1 1 . . . 4 . . . . Investigation 2 | . 1 . . . . 1 . . . . Extermination 1 | . . . . . . 1 . . . . Reinforcement 3 | . . 1 . . . 2 . . . . Assault . | . . . . . . . . . . . Garrison . | . . . . . . . . . . . Intercept . | . . . . . . . . . . . Searches Triggered . | . . . . . . . . . . . Construction Impeded . | . . . . . . . . . . . Haulers Reinforced . | . . . . . . . . . . . Active Scanning Responses . | . . . . . . . . . . . Cargo Convoy Interrupts . | . . . . . . . . . . . Stealth | -11 -10 -9 -9 -7 -6 -6 -6 -6 -6 -5 --------- Run | Yrd Mat Mat Min Zio Pro Fac Low Low Dat Pro Distress Signals 2 | . 1 . . . . 1 . . . . Communications Jammed . | . . . . . . . . . . . Distress Signals . | . . . . . . . . . . . Times Spotted 84 | . 8 9 3 . 30 24 . 4 . 6 Peak Tracking Total 10 | . 5 5 3 . 6 10 . 4 . 6 Tactical Retreats 18 | . 1 1 1 . 10 5 . . . . Traps | -11 -10 -9 -9 -7 -6 -6 -6 -6 -6 -5 ------- Run | Yrd Mat Mat Min Zio Pro Fac Low Low Dat Pro Traps Triggered . | . . . . . . . . . . . Indirectly . | . . . . . . . . . . . Trap Hack Attempts . | . . . . . . . . . . . Triggered . | . . . . . . . . . . . Disarmed . | . . . . . . . . . . . Reprogrammed . | . . . . . . . . . . . Reused . | . . . . . . . . . . . Traps Extracted . | . . . . . . . . . . . Installed . | . . . . . . . . . . . Triggered . | . . . . . . . . . . . Machines | -11 -10 -9 -9 -7 -6 -6 -6 -6 -6 -5 ---------- Run | Yrd Mat Mat Min Zio Pro Fac Low Low Dat Pro Machines Disabled . | . . . . . . . . . . . Max in Single Turn . | . . . . . . . . . . . Machines Repaired . | . . . . . . . . . . . Machines Dismantled . | . . . . . . . . . . . Machines Sabotaged . | . . . . . . . . . . . Overloaded Fab Kills . | . . . . . . . . . . . Hacking | -11 -10 -9 -9 -7 -6 -6 -6 -6 -6 -5 --------- Run | Yrd Mat Mat Min Zio Pro Fac Low Low Dat Pro Machines Accessed 12 | . 4 3 . . . 1 . . 4 . Terminals 6 | . 4 2 . . . . . . . . Fabricators 1 | . . . . . . 1 . . . . Repair Stations . | . . . . . . . . . . . Recycling Units . | . . . . . . . . . . . Scanalyzers 1 | . . 1 . . . . . . . . Garrison Access . | . . . . . . . . . . . Total Hacks 53 | . 9 13 . . . 3 . . 28 . Successful 40 | . 5 5 . . . 2 . . 28 . Failed 13 | . 4 8 . . . 1 . . . . Catastrophic . | . . . . . . . . . . . Database Lockouts . | . . . . . . . . . . . Manual 2 | . . . . . . 1 . . 1 . Terminals 19 | . 9 10 . . . . . . . . Fabricators 3 | . . . . . . 3 . . . . Repair Stations . | . . . . . . . . . . . Recycling Units . | . . . . . . . . . . . Scanalyzers 3 | . . 3 . . . . . . . . Garrison Access . | . . . . . . . . . . . Terminal Hacks 36 | . 5 3 . . . . . . 28 . Record 15 | . 3 1 . . . . . . 11 . Part Schematic 9 | . . . . . . . . . 9 . Robot Schematic 5 | . . . . . . . . . 5 . Robot Analysis 1 | . 1 . . . . . . . . . Prototype ID Bank 3 | . . . . . . . . . 3 . Alert Level 1 | . 1 . . . . . . . . . Unreport Threat 1 | . . 1 . . . . . . . . Locate Traps 1 | . . 1 . . . . . . . . Fabricator Hacks 2 | . . . . . . 2 . . . . Load Schematic 1 | . . . . . . 1 . . . . Build 1 | . . . . . . 1 . . . . Repair Station Hacks . | . . . . . . . . . . . Recycling Unit Hacks . | . . . . . . . . . . . Scanalyzer 2 | . . 2 . . . . . . . . Insert Component 1 | . . 1 . . . . . . . . Analyze 1 | . . 1 . . . . . . . . Garrison Access Hacks . | . . . . . . . . . . . Unauthorized Hacks . | . . . . . . . . . . . Terminals . | . . . . . . . . . . . Fabricators . | . . . . . . . . . . . Repair Stations . | . . . . . . . . . . . Recycling Units . | . . . . . . . . . . . Scanalyzers . | . . . . . . . . . . . Garrison Access . | . . . . . . . . . . . Data Cores Recovered . | . . . . . . . . . . . Used . | . . . . . . . . . . . Hacking Detections 7 | . 2 3 . . . 2 . . . . Full Trace Events 2 | . 1 . . . . 1 . . . . Feedback Events . | . . . . . . . . . . . Feedback Blocked . | . . . . . . . . . . . Robot Schematics Acquired 8 | . . . . 3 . . . . 5 . Robots Built 2 | . . . . . . 2 . . . . Authchips . | . . . . . . . . . . . Time 49 | . . . . . . 49 . . . . Total Robot Build Rating 4 | . . . . . . 4 . . . . Part Schematics Acquired 24 | . . 1 . 14 . . . . 9 . Parts Built . | . . . . . . . . . . . Authchips . | . . . . . . . . . . . Time . | . . . . . . . . . . . Total Part Build Rating . | . . . . . . . . . . . Parts Repaired . | . . . . . . . . . . . Time . | . . . . . . . . . . . Parts Recycled . | . . . . . . . . . . . Recycled Matter . | . . . . . . . . . . . Retrieved Matter . | . . . . . . . . . . . Retrieved Components . | . . . . . . . . . . . Parts Scanalyzed 1 | . . 1 . . . . . . . . Part Schematics Acquired 1 | . . 1 . . . . . . . . Parts Damaged . | . . . . . . . . . . . Bothacking | -11 -10 -9 -9 -7 -6 -6 -6 -6 -6 -5 ------------ Run | Yrd Mat Mat Min Zio Pro Fac Low Low Dat Pro Used RIF Installer . | . . . . . . . . . . . Robots Hacked . | . . . . . . . . . . . Non-combat . | . . . . . . . . . . . Combat . | . . . . . . . . . . . Robot Hacks Applied . | . . . . . . . . . . . Relay Couplers Released . | . . . . . . . . . . . Fabnet Peak Effective % . | . . . . . . . . . . . Robots Rewired . | . . . . . . . . . . . Allies Hacked . | . . . . . . . . . . . Hacks Repelled . | . . . . . . . . . . . Allies | -11 -10 -9 -9 -7 -6 -6 -6 -6 -6 -5 -------- Run | Yrd Mat Mat Min Zio Pro Fac Low Low Dat Pro Total Allies 4 | . . . . . . 2 . 1 . 1 Largest Group 2 | . . . . . . 2 . 1 . 1 Highest-Rated Group 167 | . . . . . . 30 . 167 . 96 Highest-Rated Ally 167 | . . . . . . 15 . 167 . 96 Total Orders . | . . . . . . . . . . . Ally Attacks 20 | . . . . . . 5 . 5 . 10 Total Damage 903 | . . . . . . 131 . 305 . 467 Kills 11 | . . . . . . 1 . 5 . 5 Allies Corrupted . | . . . . . . . . . . . Allies Melted . | . . . . . . . . . . . Intel | -11 -10 -9 -9 -7 -6 -6 -6 -6 -6 -5 ------- Run | Yrd Mat Mat Min Zio Pro Fac Low Low Dat Pro Active Infowar (turns) 929 | . . 46 24 397 81 4 157 150 44 26 Terrain 377 | . . . . . . . 157 150 44 26 Triangulation 2 | . . . . . . 2 . . . . ECM 551 | . . 46 24 397 81 2 . . . 1 Robot Analysis Total 1 | . 1 . . . . . . . . . Derelict Logs Recovered 6 | . . . . 1 3 . 1 1 . . Drone Launches . | . . . . . . . . . . . Drone Recoveries . | . . . . . . . . . . . Exploration | -11 -10 -9 -9 -7 -6 -6 -6 -6 -6 -5 ------------- Run | Yrd Mat Mat Min Zio Pro Fac Low Low Dat Pro Turns Passed 1955 | 45 129 47 24 397 475 404 207 150 44 33 Spaces Moved 3560 | 35 180 104 60 1028 816 600 309 292 88 48 Core 1203 | 8 . . . . 63 424 309 292 88 19 Treads . | . . . . . . . . . . . Legs 94 | . . . . . 94 . . . . . Wheels 192 | 27 73 . . . . 92 . . . . Hover 84 | . . . . . . 84 . . . . Flight 1987 | . 107 104 60 1028 659 . . . . 29 Fastest Speed 32 | 50 37 34 34 34 34 50 50 50 50 32 Average Speed 46 | 104 59 34 34 34 47 60 50 50 50 39 Slowest Speed 285 | 200 285 34 34 34 130 150 50 50 50 50 Overloaded Moves . | . . . . . . . . . . . Propulsion Burnouts . | . . . . . . . . . . . Robots Hopped . | . . . . . . . . . . . Potential Cave-ins . | . . . . . . . . . . . Cave-ins Triggered . | . . . . . . . . . . . Exploration Rate (%) 42 | 4 39 15 17 83 90 19 61 51 75 10 Regions Visited 10 Branch Regions 7 Pre-discovered Areas 5 | . . . . 2 1 . 1 . 1 . Known Exits Taken . | . . . . . . . . . . . Unknown Exits Taken 10 | 1 1 1 1 1 1 1 1 1 1 . Scrap Searched 7 | . . . 1 3 2 . . 1 . . Spaces Dug . | . . . . . . . . . . . Terrain Destroyed . | . . . . . . . . . . . Melee . | . . . . . . . . . . . Projectile . | . . . . . . . . . . . AOE . | . . . . . . . . . . . Terrain Rammed . | . . . . . . . . . . . Walls Destroyed . | . . . . . . . . . . . Machines Disabled . | . . . . . . . . . . . Actions | -11 -10 -9 -9 -7 -6 -6 -6 -6 -6 -5 --------- Run | Yrd Mat Mat Min Zio Pro Fac Low Low Dat Pro Total 3815 | 40 194 115 63 1075 884 641 360 295 87 61 Wait 171 | . 1 2 2 41 49 14 51 1 . 10 Move 3550 | 34 179 103 59 1027 815 599 308 291 87 48 Hop . | . . . . . . . . . . . Pick Up 19 | . 4 4 1 3 2 5 . . . . Fast Attach 18 | 6 . . . . 3 7 . . . 2 Attach 10 | . . 4 . . . 4 1 . . 1 Detach 6 | . 1 1 . . . 4 . . . . Swap 6 | . 4 . . 1 1 . . . . . Drop 19 | . 2 1 1 3 4 8 . . . . Fire 13 | . 3 . . . 10 . . . . . Melee . | . . . . . . . . . . . Ram . | . . . . . . . . . . . Kick . | . . . . . . . . . . . Crush . | . . . . . . . . . . . Escape Stasis . | . . . . . . . . . . . Rewire 3 | . . . . . . . . 3 . . Trap . | . . . . . . . . . . . Miscellaneous . | . . . . . . . . . . . Route ------- -11/Scrapyard -10/Materials -9/Materials -9/Mines -7/Zion -6/Proximity Caves -6/Factory (discovered 2 exits: [*Low] / *Ext) -6/Lower Caves -6/Lower Caves -6/Data Miner -5/Proximity Caves History --------- Turn | Location | Event 20 | -11/Scrapyard | Discovered new exit (range 16) 46 | -11/Scrapyard | Entered Materials 162 | -10/Materials | Discovered new exit (range 15) 175 | -10/Materials | Entered another Materials area 175 | -9/Materials | Evolved 2 slots: Propulsion x2 216 | -9/Materials | Discovered new exit (range 9) 222 | -9/Materials | Entered Mines 244 | -9/Mines | A Derelict revealed a hidden shortcut to a safe place 246 | -9/Mines | Entered Zion 264 | -7/Zion | Given the Hacking Drone Bay 266 | -7/Zion | Found Prototype Device 291 | -7/Zion | Learned Factory terminal intel 305 | -7/Zion | Build established: Mutant 327 | -7/Zion | Learned location of Warlord (-5) 472 | -7/Zion | Found CR-A16's Pointy Stick 638 | -7/Zion | Discovered new exit (range 13) 643 | -7/Zion | Entered Proximity Caves 665 | -6/Proximity Caves | Learned location of Extension (-6) 828 | -6/Proximity Caves | Learned Factory trap positions 999 | -6/Proximity Caves | Lost 4 parts (2n1u1w) 1019 | -6/Proximity Caves | Attracted the attention of an 0b10 checkpoint 1044 | -6/Proximity Caves | Learned 4 Factory zone layouts 1063 | -6/Proximity Caves | Spotted B-75 Beast 1069 | -6/Proximity Caves | Core integrity fell below 50% 1115 | -6/Proximity Caves | Discovered new exit (range 8) 1118 | -6/Proximity Caves | Entered Factory 1118 | -6/Factory | Evolved 6 slots: Power x2, Propulsion x2, Utility x2 1119 | -6/Factory | Identified exit to Extension 1120 | -6/Factory | Loaded intel: 83 trap records 1121 | -6/Factory | Loaded intel: 27 terminal locations 1361 | -6/Factory | Fabricated Y-45 Defender? 1420 | -6/Factory | Core integrity fell below 50% 1510 | -6/Factory | Core integrity fell below 20% 1519 | -6/Factory | Discovered new exit (range 6) 1522 | -6/Factory | Entered Lower Caves 1723 | -6/Lower Caves | Discovered new exit (range 10) 1729 | -6/Lower Caves | Entered another Lower Caves area 1735 | -6/Lower Caves | P1-3CE showed up to help 1787 | -6/Lower Caves | Encountered a Warlord checkpoint 1808 | -6/Lower Caves | Discovered new exit (range 11) 1866 | -6/Lower Caves | Learned Factory interactive machine intel 1879 | -6/Lower Caves | Entered Data Miner 1879 | -6/Data Miner | Discovered new exit (range 6) 1889 | -6/Data Miner | Met Data Miner 1904 | -6/Data Miner | Learned location of Section 7 (-2) 1904 | -6/Data Miner | Acquired the access code to Warlord's prototype stash 1912 | -6/Data Miner | Received God Mode back door access code from Data Miner 1923 | -6/Data Miner | Entered Proximity Caves 1930 | -5/Proximity Caves | Escorted by Enhanced Grunt 1956 | -5/Proximity Caves | Spotted B-75 Beast 1956 | -5/Proximity Caves | Destroyed by B-75 Beast with Magnetic Acceleration Cannon Last Messages --------------- \\W9JA to gain control via the back door I've installed. Now off with you. LOCATION=UNKNOWN GOAL=ESCAPE 01927_ Slug penetrates Wall. 01927_ Penetrated by Slug. 01930_ Enhanced Grunt: "Protecting LRC-V3." 01934_ S-27 Virus destroyed. 01942_ Slug penetrates Wall. 01942_ Enhanced Grunt suffers critical hit (Destroy). 01942_ Slug penetrates Wall. 01943_ Acquired VTOL Module. 01944_ Slug penetrates Enhanced Grunt. 01944_ Slug penetrates H-66 Slayer. 01944_ Acquired 20 matter. 01945_ Acquired 25 matter. 01946_ Autogun fries itself beyond repair. 01946_ Acquired VTOL Module. 01946_ Slug penetrates Wall. 01948_ VTOL Module fries itself beyond repair. Map ----- +----------------------------------------------------+ | ?????????????????????????????????????????????????? | | ?????????????????????????????????????????????????? | | ?????????????????????????????????????????????????? | | ?????????????????????????????????????????????????? | | ?????????????????????????????????????????????????? | | ?????????????????????????????????????????????????? | | ?????????????????????????????????????????????????? | | ?? ??????????????????????????????????????????????? | | ?????????????????????????????????????????????????? | | ?????????????????????????????????????????????????? | | ??????? ?????????????????????????????????????????? | | ?????????????????????????????????????????????????? | | ??????????????????????????????? ???????????????? | | ?????? ???????????????????????? ???????????????? | | ?????????????????????????????? ????????????????? | | ???????????????????????????### ?????????????????? | | ???????????????????????#### #?????????????????? | | #?????????????????????? #?????????????????? | | ##????????????????????? #??????????????????? | | #????????????????##???# #???????????????????? | | #????????????????# #??# #????????????????????? | | #???????????????## ### #?????????????????????? | | #??????????????### ##????????????????????? | | ????????# ## % #????????????????????? | | ???????# ##### ????????? | | ####??? @ ????????? | | ##??????###### ## ????????? | | ##?????????##??## ## #$ #; ????????? | | #?????????????# ## #? #??? BB?????????? | | #??????#????### ## ?#???????BB?????????? | | # ########???## ## ## ???????????????????? | | ## [ #?### ## ##### ##??????????????????? | | ?## % % ### # ##### #???????????????????? | | ??####### #???????????????????? | | ????????## % #######???????????????????? | | ?????????############ #?????????????????????????? | | ?????#??????????????####?????????????????????????? | | ?????????????????????????????????????????????????? | | ?????????????????????????????????????????????????? | | ?????????????????????????????????????????????????? | | ????????#????????????????????????????????????????? | | ?????????????????????????????????????????????????? | | ?????????????????????????????????????????????????? | | ?????????????????????????????????????????????????? | | ?????????????????????????????????????????????????? | | ?????????????????????????????????????????????????? | | ?????????????????????????????????????????????????? | | ?????????????????????????????????????????????????? | | ?????????????????????????????????????????????????? | | ?????????????????????????????????????????????????? | +----------------------------------------------------+ Best States ------------- Heat Dissipation 37 Energy Generation 10 Energy Capacity 350 Matter Stores 300 Matter Capacity 300 Sight Range 16 Terrain Scan Range 20 Terrain Scan Density 10 ECM Strength 1 Power Amplification 20 Evasion (%) 63 Item Schematics ----------------- Med. Laser | -9/Materials | Scanalyzed Gauss Rifle | -7/Zion | Archive Plasma Rifle | -7/Zion | Archive Energy Well | -7/Zion | Archive EM Disruption Field | -7/Zion | Archive Dynamic Insulation System | -7/Zion | Archive Field Propulsion Drive | -7/Zion | Archive Stasis Canceller | -7/Zion | Archive Imp. Deuterium Engine | -7/Zion | Archive Med. Insulated Plating | -7/Zion | Archive Imp. System Shield | -7/Zion | Archive Matter Filter | -7/Zion | Archive Adv. Melee Analysis Suite | -7/Zion | Archive Remote Datajack | -7/Zion | Archive Remote Force Field | -7/Zion | Archive Combat Drone Bay | -6/Data Miner | Free Lgt. Regenerative Plating | -6/Data Miner | Free Enh. Armored Leg | -6/Data Miner | Free Exp. Heat Sink | -6/Data Miner | Free Mni. Smartbomb Launcher | -6/Data Miner | Free Myomer Leg | -6/Data Miner | Free Adv. Target Analyzer | -6/Data Miner | Free Phase Gun | -6/Data Miner | Free Biometal Leg | -6/Data Miner | Free Robot Schematics ------------------ Y-45 Defender | -7/Zion | Archive Y-54 Guardian | -7/Zion | Archive W-25 Informer | -7/Zion | Archive B-60 Warrior | -6/Data Miner | Free P-70 Sage | -6/Data Miner | Free E-15 Imp | -6/Data Miner | Free X-67 Chaingunner | -6/Data Miner | Free I-47 Archangel | -6/Data Miner | Free Fabricated ------------ Y-45 Defender | x2 | -6/Factory Repaired ---------- Nothing Alien Tech Used ----------------- None Achievements -------------- Adventurer I'm Back, Baby! My Command Is Your Wish The Oracle Challenges ------------ None Game ------ Seed PiercingSignalExtrapolator Manual? 0 Play Time 00:50:15 Cumulative 7.1 hours Start 2025.07.14 @ 12:09:45 End 2025.07.14 @ 13:04:00 Sessions 1 Manual Loads 0 Difficulty Rogue Special Mode None Game No. 13 Rogue 13 Adventurer 0 Explorer 0 Win Type - Total 0 Types 0/0/0/0/0/0/0/0/0/0 Lore% 11 Gallery% 10 Achievement% 11 Wizard Run 0 Options --------- Layout 1 ASCII 0 Keyboard 0 Movement Numpad Keybinds 0 Fullscreen 1 Font 32/SmallcapsGlow Map View 77x35 Zoom Use 0% Tactical HUD 1 Map Filters NONE Filters NONE Steam 1 RUN: 94308d39-76fa-40f7-adfc-ae51bdc7303e